bitfinex-derivatives/quotes_ETHF0:USTF0_20250323
["timestamp","ask_amount","ask_price","bid_price","bid_amount"]
[1742753201837,1.3300305,1991.6,1991.5,3.257]
[1742753202243,1.3300305,1991.6,1991.5,4.5906]
[1742753203645,1.3300305,1991.6,1991.5,5.59504]
[1742753203838,0.0075305,1991.6,1991.5,4.5906]
[1742753204038,0.0075305,1991.6,1991.5,5.59504]
[1742753204652,0.0075305,1991.6,1991.5,4.5906]
[1742753204851,1.3420305,1991.6,1991.5,4.5906]
[1742753205755,1.3420305,1991.6,1991.5,5.59504]
[1742753205957,0.0075305,1991.6,1991.5,5.59504]
[1742753211462,0.0075305,1991.6,1991.5,8.80284]
[1742753216965,0.9313,1992.0,1991.9,1.00424]
[1742753217369,3.77176,1992.1,1991.9,1.00424]
[1742753217571,2.38369,1992.0,1991.9,1.3375]
[1742753220274,1.3795,1992.0,1991.9,2.34174]
[1742753220480,1.3795,1992.0,1991.9,1.3375]
[1742753220683,2.38369,1992.0,1991.9,1.3375]
[1742753221474,1.3795,1992.0,1991.9,2.34174]
[1742753221679,1.3795,1992.0,1991.9,1.3375]
[1742753221981,2.38369,1992.0,1991.9,1.3375]
[1742753222179,1.3795,1992.0,1991.9,2.34174]
[1742753227992,1.3956305,1992.1,1992.0,1.00419]
[1742753227993,0.0075305,1992.1,1992.0,1.00419]
[1742753228293,0.0075305,1992.1,1992.0,7.46899]
[1742753228492,0.0075305,1992.1,1992.0,4.26119]
[1742753228684,1.9876305,1992.1,1992.0,5.64799]
[1742753236598,1.9876305,1992.1,1992.0,1.3868]
[1742753236896,1.00424,1991.9,1991.8,4.958]
[1742753237101,1.00424,1991.9,1991.4,3.2078]
[1742753237102,1.00432,1991.8,1991.5,1.00444]
[1742753237402,1.00443,1991.6,1991.3,4.2680705]
[1742753237586,1.00443,1991.6,1991.3,5.5494705]
[1742753237587,1.9369,1991.5,1991.3,5.5494705]
[1742753237787,1.3474,1991.5,1991.4,1.3699]
[1742753238397,1.3474,1991.5,1991.4,2.37439]
[1742753238591,3.2078,1991.8,1991.6,1.00438]
[1742753238791,1.359,1991.9,1991.8,1.00429]
[1742753238998,0.0075305,1992.1,1991.9,1.00421]
[1742753239296,0.0075305,1992.1,1992.0,3.256]
[1742753239491,0.0075305,1992.1,1992.0,4.26019]
[1742753241899,0.0075305,1992.1,1992.0,5.58339]
[1742753244003,0.0075305,1992.1,1992.0,10.54139]
[1742753246400,0.6666,1992.5,1992.3,1.00402]
[1742753246601,0.6666,1992.5,1992.4,3.256]
[1742753248000,0.6666,1992.5,1992.4,4.25999]
[1742753251908,0.0075305,1992.6,1992.4,3.256]
[1742753252104,0.0075305,1992.6,1992.5,2.28244]
[1742753259009,0.0075305,1992.6,1992.5,5.49024]
[1742753264023,1.312,1992.7,1992.6,1.00389]
[1742753264317,1.312,1992.7,1992.6,5.65289]
[1742753266321,3.2078,1993.2,1992.8,2.50945]
[1742753266519,1.9785,1993.1,1993.0,1.00369]
[1742753267021,1.9785,1993.1,1993.0,2.28639]
[1742753267818,1.2832,1993.1,1993.0,5.49419]
[1742753268423,0.0075305,1993.2,1993.1,1.00364]
[1742753268725,0.0075305,1993.2,1993.1,6.33954]
[1742753285627,0.0075305,1993.2,1993.1,9.54734]
[1742753287429,0.0075305,1993.2,1993.1,8.86974]
[1742753289230,0.0075305,1993.2,1993.0,5.96166]
[1742753289433,0.0075305,1993.2,1993.1,3.253]
[1742753289836,1.2918305,1993.2,1993.1,3.253]
[1742753290436,2.2954205,1993.2,1993.1,3.253]
[1742753291134,1.2918305,1993.2,1993.1,3.253]
[1742753291640,1.2918305,1993.2,1993.0,1.00366]
[1742753291839,0.6648,1993.1,1993.0,1.00366]
[1742753292043,0.6648,1993.1,1993.0,4.25666]
[1742753293642,0.6648,1993.1,1993.0,3.253]
[1742753294137,2.0351,1993.1,1993.0,3.253]
[1742753295138,2.0351,1993.1,1993.0,4.25669]
[1742753296440,2.0351,1993.1,1993.0,5.58619]
[1742753297432,1.3703,1993.1,1993.0,6.26139]
[1742753303144,0.0075305,1993.2,1993.1,1.00364]
[1742753303346,1.3176305,1993.2,1993.1,5.56404]
[1742753304445,0.0075305,1993.2,1993.1,5.56404]
[1742753304638,0.0075305,1993.2,1993.1,6.01844]
[1742753307951,0.0075305,1993.2,1993.1,10.97644]
[1742753310039,1.3101,1993.5,1993.4,1.00349]
[1742753310347,0.7099,1993.9,1993.8,1.00329]
[1742753310549,0.7099,1993.9,1993.8,4.25529]
[1742753310953,0.7099,1993.9,1993.8,5.53809]
[1742753311651,0.6959,1994.1,1994.0,1.00318]
[1742753311849,0.6959,1994.1,1994.0,4.25518]
[1742753312352,0.6959,1994.1,1994.0,5.53798]
[1742753313450,2.0942,1994.1,1994.0,5.53798]
[1742753314851,1.3983,1994.1,1994.0,5.53798]
[1742753315952,0.6995,1994.5,1994.2,1.00304]
[1742753316143,1.9903,1994.4,1994.3,4.25403]
[1742753316652,1.9903,1994.4,1994.3,3.251]
[1742753317939,6.20108,1994.4,1994.3,3.251]
[1742753318143,6.20108,1994.4,1994.3,2.1866]
[1742753318548,1.00318,1994.0,1993.9,4.958]
[1742753318745,1.00325,1993.9,1993.7,3.2585305]
[1742753319054,4.91589,1993.8,1993.7,0.0075305]
[1742753319251,4.91589,1993.8,1993.7,3.2585305]
[1742753320945,0.7048,1993.8,1993.7,4.2618705]
[1742753321548,0.7048,1993.8,1993.7,5.5679705]
[1742753322555,1.2834,1993.9,1993.8,1.00329]
[1742753322854,3.9106,1994.3,1994.2,1.00308]
[1742753323043,3.9106,1994.3,1994.2,4.25408]
[1742753323044,0.7028,1994.3,1994.2,4.25408]
[1742753323652,0.7028,1994.3,1994.2,3.251]
[1742753324247,1.70583,1994.3,1994.2,3.251]
[1742753324450,1.0031,1994.2,1994.0,3.251]
[1742753324644,2.9419,1994.2,1994.0,3.251]
[1742753324843,2.9419,1994.2,1993.7,3.2153305]
[1742753324844,1.9388,1994.2,1993.7,0.0075305]
[1742753325059,3.2078,1994.0,1993.7,0.0075305]
[1742753325357,1.9587,1993.9,1993.7,0.0075305]
[1742753325558,0.6787,1993.9,1993.7,2.3789505]
[1742753325745,0.6787,1993.9,1993.8,1.3681]
[1742753326059,0.6787,1993.9,1993.8,4.6191]
[1742753327054,0.6787,1993.9,1993.8,5.62239]
[1742753327246,0.6787,1993.9,1993.8,4.6191]
[1742753328055,0.6787,1993.9,1993.8,5.62239]
[1742753328859,9.0142905,1994.3,1993.9,1.00321]
[1742753329160,0.6546,1994.2,1994.0,5.60358]
[1742753329556,0.6546,1994.2,1994.0,4.6004]
[1742753329752,1.65769,1994.2,1994.0,4.6004]
[1742753329952,0.6546,1994.2,1994.0,5.60357]
[1742753330254,0.6546,1994.2,1994.1,1.00313]
[1742753330454,0.6546,1994.2,1994.1,2.38143]
[1742753332564,0.6546,1994.2,1994.1,1.3783]
[1742753333159,0.6546,1994.2,1994.1,2.38143]
[1742753339563,1.2908,1994.3,1994.1,3.05293]
[1742753339760,1.2908,1994.3,1994.2,4.5516]
[1742753341258,2.29383,1994.3,1994.2,3.25]
[1742753341455,2.94963,1994.3,1994.2,3.25]
[1742753342054,2.94963,1994.3,1994.0,2.29288]
[1742753342250,1.3293,1994.2,1994.1,4.5397]
[1742753343261,2.33238,1994.2,1994.1,1.2897]
[1742753343463,2.33238,1994.2,1994.1,4.5397]
[1742753345963,5.54018,1994.2,1993.9,1.00322]
[1742753346266,1.3363,1994.1,1994.0,4.6519]
[1742753347061,1.3363,1994.1,1994.0,1.4019]
[1742753347263,1.3363,1994.1,1994.0,4.6519]
[1742753349973,2.33943,1994.1,1994.0,4.6519]
[1742753350563,1.3363,1994.1,1994.0,4.6519]
[1742753352166,2.33943,1994.1,1994.0,4.6519]
[1742753352874,1.3363,1994.1,1994.0,4.6519]
[1742753354068,1.3363,1994.1,1994.0,5.65508]
[1742753354373,1.3363,1994.1,1994.0,4.6519]
[1742753357366,0.6558,1994.3,1994.1,1.00309]
[1742753357668,2.0408,1994.3,1994.2,5.2558]
[1742753358167,2.0408,1994.3,1994.2,6.25888]
[1742753358566,2.0408,1994.3,1994.2,5.2558]
[1742753358766,3.2078,1994.7,1994.2,10.97131]
[1742753358970,1.385,1994.5,1994.4,1.00294]
[1742753359166,1.385,1994.5,1994.4,4.95474]
[1742753360175,1.385,1994.5,1994.4,3.9518]
[1742753360377,1.385,1994.5,1994.4,4.95478]
[1742753360580,1.385,1994.5,1994.4,3.9518]
[1742753360876,1.385,1994.5,1994.4,4.95478]
[1742753363572,4.5501,1994.7,1994.5,1.0029]
[1742753363877,1.4046,1994.6,1994.5,1.0029]
[1742753364078,1.4046,1994.6,1994.5,3.249]
[1742753364672,1.4046,1994.6,1994.5,4.25193]
[1742753365068,1.4046,1994.6,1994.5,3.249]
[1742753365477,1.4046,1994.6,1994.5,4.25193]
[1742753376889,5.55293,1994.7,1994.6,1.00288]
[1742753376890,0.6886,1994.7,1994.6,1.00288]
[1742753377088,0.6886,1994.7,1994.6,2.36568]
[1742753377292,0.6886,1994.7,1994.6,3.68528]
[1742753377887,2.0411,1994.7,1994.6,3.68528]
[1742753378888,1.3525,1994.7,1994.6,3.68528]
[1742753379185,8.0112305,1995.4,1994.7,2.50708]
[1742753379393,8.0112305,1995.4,1994.6,5.8902]
[1742753379394,1.3485,1995.0,1994.9,1.00273]
[1742753379580,1.3485,1995.0,1994.9,5.5437605]
[1742753380690,2.0191,1995.0,1994.9,5.5437605]
[1742753385591,3.8845,1995.2,1995.1,1.00263]
[1742753385791,3.8845,1995.2,1995.1,4.25063]
[1742753385994,3.2078,1995.2,1995.1,4.25063]
[1742753386192,3.2078,1995.2,1995.1,5.57873]
[1742753387701,1.3911,1995.3,1995.2,1.00258]
[1742753387902,1.3911,1995.3,1995.2,2.38188]
[1742753391304,1.3911,1995.3,1995.2,1.3793]
[1742753392302,1.00262,1995.2,1995.0,4.958]
[1742753392505,2.6635,1995.1,1995.0,4.958]
[1742753392811,2.6635,1995.1,1995.0,9.6199]
[1742753393612,2.6635,1995.1,1995.0,10.62258]
[1742753394204,2.6635,1995.1,1995.0,9.6199]
[1742753395512,2.6635,1995.1,1995.0,10.62258]
[1742753396308,1.28,1995.1,1995.0,10.62258]
[1742753396507,1.28,1995.1,1995.0,5.66458]
[1742753398302,1.28,1995.1,1995.0,4.6619]
[1742753400119,1.28,1995.1,1995.0,1.4139]
[1742753400317,2.28263,1995.1,1995.0,3.247]
[1742753402220,1.00268,1995.0,1994.9,0.0075305]
[1742753402415,2.98928,1995.0,1994.9,0.0075305]
[1742753402817,2.98928,1995.0,1994.9,1.3458305]
[1742753410533,2.98928,1995.0,1994.9,0.0075305]
[1742753411328,2.98928,1995.0,1994.9,1.2879305]
[1742753412329,6.19708,1995.0,1994.9,0.0075305]
[1742753417935,2.50694,1994.9,1994.0,3.2078]
[1742753418136,1.00299,1994.4,1994.3,1.4151]
[1742753418331,1.00299,1994.4,1994.3,4.6621]
[1742753418538,3.71057,1994.5,1994.3,5.66512]
[1742753418727,2.33477,1994.5,1994.4,1.4151]
[1742753422633,1.00298,1994.4,1994.3,0.0075305]
[1742753422833,4.21078,1994.4,1994.3,1.4005305]
[1742753424035,1.00298,1994.4,1994.3,1.4005305]
[1742753425136,4.21078,1994.4,1994.3,1.4005305]
[1742753430138,3.2078,1994.4,1994.3,1.4005305]
[1742753430444,3.2078,1994.4,1994.3,0.0075305]
[1742753431039,6.4548,1994.4,1994.3,0.0075305]
[1742753431342,8.9548,1994.4,1994.3,0.0075305]
[1742753431548,8.9548,1994.4,1993.8,3.8896]
[1742753431747,3.2078,1994.1,1993.9,1.3047]
[1742753431941,1.3234,1994.0,1993.9,1.3047]
[1742753437249,2.6787,1994.0,1993.9,1.3047]
[1742753439450,2.6787,1994.0,1993.8,0.0075305]
[1742753439658,7.7863,1993.9,1993.8,0.0075305]
[1742753439950,12.5897305,1993.9,1993.4,1.3965]
[1742753440254,3.2078,1993.6,1993.2,3.248]
[1742753440553,3.2078,1993.4,1993.2,4.6445]
[1742753440743,3.2078,1993.4,1993.3,1.3965]
[1742753444050,1.3458305,1993.5,1993.3,1.3965]
[1742753444554,3.2078,1993.4,1993.3,1.3965]
[1742753447856,10.5112305,1993.4,1992.5,3.2078]
[1742753448052,3.2078,1992.8,1992.4,1.3536]
[1742753448250,3.2078,1992.8,1992.5,0.6394]
[1742753448450,3.2078,1992.8,1992.6,1.3161]
[1742753451253,3.8465,1992.8,1992.6,1.3161]
[1742753454259,7.1125,1992.8,1992.5,0.0075305]
[1742753454460,3.2078,1992.6,1992.5,0.0075305]
[1742753454658,6.4738,1992.6,1992.5,0.0075305]
[1742753454858,6.4738,1992.6,1992.0,5.3072]
[1742753455061,3.2078,1992.3,1992.1,1.3978]
[1742753455452,0.6457,1992.2,1992.1,1.3978]
[1742753456053,0.6457,1992.2,1992.0,0.0075305]
[1742753456254,0.6457,1992.2,1992.0,1.4053305]
[1742753456255,3.2078,1992.1,1992.0,1.4053305]
[1742753456455,3.8552,1992.1,1992.0,1.4053305]
[1742753457463,3.2153305,1992.3,1992.0,1.4053305]
[1742753457665,3.2153305,1992.3,1992.1,0.6997]
[1742753458056,4.4941305,1992.3,1992.1,0.6997]
[1742753459658,1.2788,1992.2,1992.1,0.6997]
[1742753460462,1.2788,1992.2,1992.1,3.9687]
[1742753464055,3.2153305,1992.3,1992.1,3.9687]
[1742753464254,4.5428305,1992.3,1992.1,3.9687]
[1742753464461,3.2153305,1992.3,1992.1,3.9687]
[1742753467260,1.3027,1992.2,1992.1,3.9687]
[1742753471470,1.3027,1992.2,1992.1,3.256]
[1742753477365,1.3027,1992.2,1992.1,1.2948]
[1742753477574,2.0009,1992.2,1992.1,1.2948]
[1742753478073,1.3027,1992.2,1992.1,1.2948]
[1742753479977,3.2153305,1992.3,1992.1,1.2948]
[1742753480576,3.2153305,1992.3,1992.2,0.6416]
[1742753481267,3.2153305,1992.3,1992.2,3.8926]
[1742753481677,0.0075305,1992.3,1992.2,3.8926]
[1742753486983,3.8696,1993.0,1992.2,9.6004]
[1742753487184,2.0442,1992.9,1992.3,1.4015]
[1742753487374,4.5642,1992.8,1992.4,3.9036]
[1742753487682,4.5642,1992.8,1992.5,1.3966]
[1742753487683,1.3584,1992.7,1992.5,1.3966]
[1742753487979,1.3584,1992.7,1992.6,3.251]
[1742753488182,2.0679,1992.7,1992.6,3.251]
[1742753488379,2.0679,1992.7,1992.4,3.251]
[1742753488682,5.254,1992.6,1992.4,3.251]
[1742753488870,1.3584,1992.5,1992.4,3.251]
[1742753492685,1.3584,1992.5,1992.3,4.6476]
[1742753493086,1.3584,1992.5,1992.4,1.2998]
[1742753496681,1.3584,1992.5,1992.1,0.6745]
[1742753496881,3.8953,1992.4,1992.1,5.2439]
[1742753497085,1.3931,1992.3,1992.1,4.5694]
[1742753497385,2.0363,1992.3,1992.1,4.5694]
[1742753497587,2.0363,1992.3,1992.2,1.3194]
[1742753499188,2.0363,1992.3,1992.0,3.2575305]
[1742753499390,1.3931,1992.2,1992.1,1.3194]
[1742753508412,0.6432,1992.3,1992.1,1.3194]
[1742753508611,1.3824,1992.2,1992.1,1.3194]
[1742753515218,2.38649,1992.2,1992.1,1.3194]
[1742753527831,2.38649,1992.2,1992.1,1.9912]
[1742753528923,0.6432,1992.3,1992.1,1.9912]
[1742753529125,4.21177,1992.5,1992.3,1.00404]
[1742753529630,5.51187,1992.5,1992.3,1.69534]
[1742753529821,1.3001,1992.4,1992.3,1.69534]
[1742753530423,3.2078,1992.5,1992.4,1.00399]
[1742753530626,4.5698,1992.5,1992.4,1.00399]
[1742753530829,5.57377,1992.5,1992.3,1.6953]
[1742753531022,2.0296,1992.4,1992.3,1.6953]
[1742753531324,3.03359,1992.4,1992.3,1.69534]
[1742753532124,3.73859,1992.4,1992.3,1.69534]
[1742753532333,1.00404,1992.3,1992.2,3.251]
[1742753532537,2.36604,1992.3,1992.2,3.251]
[1742753533639,5.57384,1992.3,1992.2,3.251]
[1742753536131,5.57384,1992.3,1992.2,4.25509]
[1742753536328,5.57384,1992.3,1992.2,3.251]
[1742753536536,5.57384,1992.3,1992.2,4.25509]
[1742753536731,5.57384,1992.3,1992.2,3.251]
[1742753537139,1.362,1992.3,1992.2,4.25509]
[1742753537339,2.36604,1992.3,1992.2,4.25509]
[1742753537934,1.00409,1992.2,1992.0,0.0075305]
[1742753538234,2.32659,1992.2,1992.1,4.25414]
[1742753538730,2.32659,1992.2,1992.1,3.25]
[1742753543238,1.00414,1992.1,1992.0,0.0075305]
[1742753543444,6.87614,1992.1,1992.0,0.0075305]
[1742753546437,1.3273,1992.1,1992.0,1.0117205]
[1742753546643,4.85378,1992.3,1992.0,0.0075305]
[1742753546851,1.3278,1992.2,1992.1,1.65474]
[1742753547044,3.2078,1992.3,1992.2,1.00409]
[1742753547344,0.6812,1992.4,1992.3,1.00404]
[1742753547540,2.33179,1992.4,1992.3,3.25]
[1742753547741,1.3278,1992.4,1992.3,4.25404]
[1742753547940,8.0112305,1992.5,1992.3,5.56734]
[1742753548148,3.2078,1992.5,1992.4,2.0083]
[1742753548334,3.2078,1992.5,1992.4,2.7177]
[1742753548532,4.4883,1992.5,1992.4,2.7177]
[1742753548733,3.2078,1992.5,1992.4,3.72169]
[1742753549141,0.6494305,1992.8,1992.4,3.72169]
[1742753549343,1.2880305,1992.8,1992.7,1.00384]
[1742753549534,1.2880305,1992.8,1992.7,4.25384]
[1742753549740,0.0075305,1992.8,1992.7,4.25384]
[1742753550041,0.0075305,1992.8,1992.7,4.90794]
[1742753550241,1.2880305,1992.8,1992.7,4.90794]
[1742753550440,0.0075305,1992.8,1992.7,3.9041]
[1742753550642,0.0075305,1992.8,1992.7,5.2718]
[1742753550833,1.2880305,1992.8,1992.7,5.2718]
[1742753551036,1.2880305,1992.8,1992.7,6.27564]
[1742753551438,0.0075305,1992.8,1992.7,6.27564]
[1742753554749,1.2887305,1992.8,1992.7,6.27564]
[1742753554957,1.2887305,1992.8,1992.7,5.2718]
[1742753555253,1.2887305,1992.8,1992.7,6.27564]
[1742753556339,1.2887305,1992.8,1992.7,5.2718]
[1742753556340,2.2925205,1992.8,1992.7,5.2718]
[1742753556644,1.2887305,1992.8,1992.7,5.2718]
[1742753558354,1.2887305,1992.8,1992.7,6.27564]
[1742753558654,1.2887305,1992.8,1992.7,5.2718]
[1742753559059,2.2925205,1992.8,1992.7,5.2718]
[1742753559250,2.2925205,1992.8,1992.7,4.6177]
[1742753565165,1.2887305,1992.8,1992.7,5.62154]
[1742753565352,2.2925205,1992.8,1992.7,5.62154]
[1742753565761,2.2925205,1992.8,1992.7,4.6177]
[1742753572966,1.2887305,1992.8,1992.7,5.62154]
[1742753576670,1.2887305,1992.8,1992.7,4.6177]
[1742753576671,2.2925205,1992.8,1992.7,4.6177]
[1742753578670,2.2925205,1992.8,1992.4,0.7094]
[1742753578671,1.0039,1992.6,1992.4,1.00395]
[1742753578867,1.3156,1992.5,1992.4,5.54825]
[1742753579179,3.68494,1992.5,1992.4,4.5443]
[1742753579769,3.68494,1992.5,1992.4,1.2953]
[1742753579965,6.89274,1992.5,1992.4,1.2953]
[1742753580671,5.8888,1992.5,1992.4,1.2953]
[1742753580978,6.89274,1992.5,1992.4,1.2953]
[1742753582673,3.68494,1992.5,1992.4,1.2953]
[1742753582864,6.89274,1992.5,1992.4,1.2953]
[1742753590478,3.68494,1992.5,1992.4,1.2953]
[1742753591479,3.04504,1992.5,1992.4,1.2953]
[1742753591680,1.3654,1992.5,1992.4,1.2953]
[1742753591895,1.3654,1992.5,1992.4,2.29929]
[1742753592083,5.53685,1992.7,1992.5,1.00394]
[1742753592386,1.3891,1992.6,1992.5,1.3842]
[1742753592571,1.3891,1992.6,1992.5,4.6332]
[1742753593286,2.39299,1992.6,1992.5,4.6332]
[1742753595589,2.39299,1992.6,1992.5,3.9405]
[1742753599289,1.3891,1992.6,1992.5,3.9405]
[1742753599590,2.39299,1992.6,1992.5,3.9405]
[1742753600084,1.3891,1992.6,1992.5,4.94444]
[1742753600294,2.39299,1992.6,1992.5,3.9405]
[1742753604493,1.3891,1992.6,1992.5,3.9405]
[1742753604687,2.39299,1992.6,1992.5,3.9405]
[1742753605486,1.3891,1992.6,1992.5,3.9405]
[1742753605891,1.3891,1992.6,1992.5,4.94444]
[1742753606187,1.3891,1992.6,1992.5,3.9405]
[1742753606499,1.3891,1992.6,1992.5,4.94444]
[1742753607083,1.3891,1992.6,1992.5,3.9405]
[1742753607793,1.3891,1992.6,1992.5,5.284]
[1742753608592,2.39299,1992.6,1992.5,5.284]
[1742753609590,1.3891,1992.6,1992.5,6.28794]
[1742753612694,2.39299,1992.6,1992.5,5.284]
[1742753612897,1.3891,1992.6,1992.5,6.28794]
[1742753613887,0.0075305,1992.8,1992.7,1.00384]
[1742753614094,0.0075305,1992.8,1992.7,7.45964]
[1742753614294,0.0075305,1992.8,1992.7,4.25184]
[1742753614988,0.0075305,1992.8,1992.7,3.248]
[1742753615181,0.0075305,1992.8,1992.7,4.5816]
[1742753615182,2.3110205,1992.8,1992.7,4.5816]
[1742753615488,2.9639205,1992.8,1992.7,4.5816]
[1742753616079,3.6726205,1992.8,1992.7,1.3336]
[1742753616279,3.6726205,1992.8,1992.2,2.5102]
[1742753616280,1.00389,1992.6,1992.4,1.00395]
[1742753616484,0.6529,1992.5,1992.4,1.00395]
[1742753616681,1.9604,1992.5,1992.4,4.25195]
[1742753627509,1.9604,1992.5,1992.4,5.63575]
[1742753648726,2.6033,1992.5,1992.4,5.63575]
[1742753650019,3.60724,1992.5,1992.4,4.6318]
[1742753650623,3.60724,1992.5,1992.4,3.248]
[1742753651128,2.6033,1992.5,1992.3,5.64963]
[1742753651329,2.29974,1992.5,1992.4,1.3986]
[1742753652719,1.00399,1992.4,1992.3,3.247]
[1742753652930,1.00399,1992.4,1992.3,4.6264]
[1742753655331,2.29978,1992.5,1992.3,4.6264]
[1742753655632,2.29978,1992.5,1992.4,1.3768]
[1742753662027,0.0075305,1992.8,1992.4,1.3768]
[1742753662217,2.32356,1992.7,1992.5,1.00391]
[1742753662418,0.0075305,1992.8,1992.7,1.00384]
[1742753662622,0.0075305,1992.8,1992.7,4.24984]
[1742753669632,1.3659305,1992.8,1992.7,4.24984]
[1742753679446,0.0075305,1992.8,1992.7,4.24984]
[1742753684265,1.3305305,1992.8,1992.7,4.24984]
[1742753687165,2.3343205,1992.8,1992.7,3.246]
[1742753687667,2.3343205,1992.8,1992.7,4.6324]
[1742753687868,1.3305305,1992.8,1992.7,5.63624]
[1742753696367,0.0075305,1992.8,1992.7,8.84404]
[1742753696574,1.00359,1993.2,1993.0,1.00367]
[1742753696763,2.7071,1993.3,1993.2,1.00359]
[1742753697070,3.41459935,1993.3,1993.1,2.29213]
[1742753697269,2.35455,1993.3,1993.2,1.2885]
[1742753697971,2.35455,1993.3,1993.2,2.29209]
[1742753698161,2.35455,1993.3,1993.2,1.2885]
[1742753698364,1.351,1993.3,1993.2,5.53609]
[1742753698874,3.2153305,1993.4,1993.3,1.00354]
[1742753699173,3.2153305,1993.4,1993.3,2.31924]
[1742753699569,0.0075305,1993.4,1993.3,2.31924]
[1742753700666,1.0110205,1993.4,1993.3,1.3157]
[1742753700864,3.2153305,1993.4,1993.2,1.3157]
[1742753701069,4.2188205,1993.4,1993.3,3.244]
[1742753701371,1.00357,1993.3,1993.1,4.2551305]
[1742753701574,0.6679,1993.2,1993.1,4.2551305]
[1742753701761,1.341,1993.2,1993.1,4.2551305]
[1742753704882,1.00354,1993.3,1993.1,4.2541305]
[1742753705175,0.6995,1993.2,1993.1,4.2541305]
[1742753705772,1.70324,1993.3,1993.2,1.00359]
[1742753705773,0.6997,1993.3,1993.2,1.00359]
[1742753705972,0.6997,1993.3,1993.2,2.38539]
[1742753707086,1.3905,1993.3,1993.2,2.38539]
[1742753707577,2.68,1993.3,1993.2,2.38539]
[1742753708177,1.2895,1993.3,1993.2,2.38539]
[1742753709973,0.0075305,1993.4,1993.3,1.00354]
[1742753710173,1.2895,1993.7,1993.6,1.00339]
[1742753710375,1.2895,1993.7,1993.6,4.24639]
[1742753713484,0.0075305,1993.8,1993.7,1.00334]
[1742753713685,1.3311305,1993.8,1993.7,2.97414]
[1742753713987,1.3311305,1993.8,1993.7,3.66614]
[1742753714589,0.6934,1994.0,1993.9,1.00323]
[1742753714797,1.3236,1994.0,1993.9,4.24623]
[1742753717283,0.0075305,1994.1,1994.0,1.00318]
[1742753717484,1.4117305,1994.1,1994.0,3.63648]
[1742753718881,1.4117305,1994.1,1994.0,1.989]
[1742753719190,1.4117305,1994.1,1994.0,2.99218]
[1742753719386,1.4117305,1994.1,1994.0,1.989]
[1742753719588,1.4117305,1994.1,1994.0,2.99218]
[1742753722893,1.4117305,1994.1,1994.0,3.64838]
[1742753729500,1.4117305,1994.1,1994.0,2.99218]
[1742753731002,1.4117305,1994.1,1994.0,1.307]
[1742753731800,1.4117305,1994.1,1994.0,2.31018]
[1742753735003,2.4148605,1994.1,1993.6,10.67427]
[1742753735198,1.00324,1993.9,1993.7,4.24429]
[1742753735396,6.33191,1994.0,1993.7,3.241]
[1742753735610,0.7057,1993.9,1993.7,4.24429]
[1742753735905,2.1225,1993.9,1993.7,4.24429]
[1742753736099,2.1225,1993.9,1993.8,1.3838]
[1742753736300,1.70893,1993.9,1993.7,4.24429]
[1742753736904,1.70893,1993.9,1993.7,4.24433]
[1742753738799,0.7057,1993.9,1993.7,4.24433]
[1742753738999,1.70894,1993.9,1993.7,4.24433]
[1742753739999,0.7057,1993.9,1993.7,4.24433]
[1742753740199,1.70894,1993.9,1993.7,4.24433]
[1742753741100,1.70897,1993.9,1993.7,3.241]
[1742753741606,1.70897,1993.9,1993.7,4.5703]
[1742753742104,0.7057,1993.9,1993.7,5.57363]
[1742753742302,0.7057,1993.9,1993.8,1.3293]
[1742753742502,0.7057,1993.9,1993.8,4.5703]
[1742753742703,1.70893,1993.9,1993.8,4.5703]
[1742753743403,1.70893,1993.9,1993.6,1.00335]
[1742753743604,1.70893,1993.9,1993.7,3.24]
[1742753743805,1.70893,1993.9,1993.6,2.33265]
[1742753744007,1.70893,1993.9,1993.7,4.6587]
[1742753744697,1.70893,1993.9,1993.7,5.66203]
[1742753744891,1.70893,1993.9,1993.8,1.4187]
[1742753745104,1.70893,1993.9,1993.8,4.6587]
[1742753745296,1.70893,1993.9,1993.8,1.4187]
[1742753745491,1.70893,1993.9,1993.8,4.6587]
[1742753746209,1.70893,1993.9,1993.8,1.4187]
[1742753746406,1.00332,1993.8,1993.5,2.2986]
[1742753746711,1.00334,1993.7,1993.6,1.4187]
[1742753746905,1.67654,1993.7,1993.6,1.4187]
[1742753747406,3.04084,1993.7,1993.6,4.6587]
[1742753748907,3.04084,1993.7,1993.6,1.4187]
[1742753749101,3.04084,1993.7,1993.6,4.6587]
[1742753749912,3.04084,1993.7,1993.6,1.4187]
[1742753750709,3.04084,1993.7,1993.6,4.6587]
[1742753752707,3.04084,1993.7,1993.4,3.2078]
[1742753752708,2.0375,1993.7,1993.4,4.21128]
[1742753753009,2.30569,1993.6,1993.5,1.2853]
[1742753753307,2.99829,1993.6,1993.5,1.2853]
[1742753754405,2.99829,1993.6,1993.5,4.5253]
[1742753759008,2.99829,1993.6,1993.5,5.52874]
[1742753759206,4.21109,1993.8,1993.5,4.5253]
[1742753759406,4.552,1993.8,1993.7,1.00334]
[1742753759606,4.552,1993.8,1993.7,4.24334]
[1742753759607,3.2078,1993.8,1993.7,4.24334]
[1742753759807,3.2078,1993.8,1993.7,5.64514]
[1742753760505,0.0075305,1994.1,1993.7,5.64514]
[1742753760715,2.3548905,1994.1,1993.8,1.4018]
[1742753760910,2.3548905,1994.1,1993.9,4.93189]
[1742753761113,2.3548905,1994.1,1994.0,1.4018]
[1742753761415,1.0106905,1994.1,1994.0,1.4018]
[1742753763417,1.0106905,1994.1,1994.0,2.40498]
[1742753765322,0.0075305,1994.1,1994.0,2.40498]
[1742753772117,0.0075305,1994.1,1994.0,5.61278]